Workbook

Sheet 別紙１
A1: 様式１
A2: 閉 所 計 画 ・ 閉 所 実 績 書
T4: 対象年度 | W4: 2024 | AA4: 年度
A5: 提 出 日 | E5: 令和7年4月31日
A6: 工 事 名 | E6: ●●●●●●●●工事
A7: 受 注 者 | E7: ○○○○〇工業(株) | AJ7: ４週６休
A8: 工 期 | E8: 令和７年４月17日～令和８年３月15日 | AJ8: ４週７休
A9: 対象期間 | E9: 令和７年５月８日～令和８年３月15日 | AJ9: ４週８休
A10: 月 別 | E10: 計画 | M10: 実績 | U10: 備 考 （対象外の期間等） | AA10: 月単位 | AG10: シミュレーション表
E11: 閉所日数 | H11: 対象日数 | K11: 閉所率 | M11: 閉所日数 | P11: 対象日数 | S11: 計 | AI11: 必要閉所日 | AJ11: 対象日数 | AK11: ４週８休
A12: ='4月'!A6:B6 -> 令6年4月 | E12: ='4月'!C39 -> 0 | H12: ='4月'!C40 -> 0 | K12: ='4月'!C41 -> 対象外 | M12: ='4月'!D39 -> 0 | P12: ='4月'!D40 -> 0 | S12: ='4月'!D41 -> 対象外 | U12: ４月は準備期間 | AA12: ='4月'!F44 -> － | AG12: 月毎 | AH12: =A12 -> 令6年4月 | AI12: =ROUNDUP(AK12*AJ12,0) -> 0 | AJ12: =H12 -> 0 | AK12: =IF(AK11="４週６休",0.214,IF(AK11="４週７休",0.254,IF(AK11="４週８休",0.285))) -> 0.285
A13: ='5月'!A6:B6 -> 令6年5月 | E13: ='5月'!C40 -> 7 | H13: ='5月'!C41 -> 24 | K13: ='5月'!C42 -> 0.2916666667 | M13: ='5月'!D40 -> 7 | P13: ='5月'!D41 -> 24 | S13: ='5月'!D42 -> 0.2916666667 | U13: 5/8 現場着手日 | AA13: ='5月'!F45 -> ◎ | AH13: =A13 -> 令6年5月 | AI13: =ROUNDUP(AK13*AJ13,0) -> 7 | AJ13: =H13 -> 24 | AK13: =AK12 -> 0.285
A14: ='6月'!A6:B6 -> 令6年6月 | E14: ='6月'!C39 -> 9 | H14: ='6月'!C40 -> 30 | K14: ='6月'!C41 -> 0.3 | M14: ='6月'!D39 -> 10 | P14: ='6月'!D40 -> 30 | S14: ='6月'!D41 -> 0.3333333333 | AA14: ='6月'!F44 -> ◎ | AH14: 令6年6月 | AI14: 9 | AJ14: 30 | AK14: =AK13 -> 0.285
A15: ='7月'!A6:B6 -> 令6年7月 | E15: ='7月'!C40 -> 10 | H15: ='7月'!C41 -> 31 | K15: ='7月'!C42 -> 0.3225806452 | M15: ='7月'!D40 -> 10 | P15: ='7月'!D41 -> 31 | S15: ='7月'!D42 -> 0.3225806452 | AA15: ='7月'!F45 -> ◎ | AH15: 令6年7月 | AI15: 9 | AJ15: 31 | AK15: 0.285
A16: ='8月'!A6:B6 -> 令6年8月 | E16: ='8月'!C40 -> 9 | H16: ='8月'!C41 -> 27 | K16: ='8月'!C42 -> 0.3333333333 | M16: ='8月'!D40 -> 9 | P16: ='8月'!D41 -> 27 | S16: ='8月'!D42 -> 0.3333333333 | U16: 夏季休暇４日を除く | AA16: ='8月'!F45 -> ◎ | AH16: 令6年8月 | AI16: 8 | AJ16: 27 | AK16: 0.285
A17: ='9月'!A6:B6 -> 令6年9月 | E17: ='9月'!C39 -> 9 | H17: ='9月'!C40 -> 30 | K17: ='9月'!C41 -> 0.3 | M17: ='9月'!D39 -> 9 | P17: ='9月'!D40 -> 30 | S17: ='9月'!D41 -> 0.3 | AA17: ='9月'!F44 -> ◎ | AH17: 令6年9月 | AI17: 9 | AJ17: 30 | AK17: 0.285
A18: ='10月'!A6:B6 -> 令6年10月 | E18: ='10月'!C40 -> 9 | H18: ='10月'!C41 -> 31 | K18: ='10月'!C42 -> 0.2903225806 | M18: ='10月'!D40 -> 9 | P18: ='10月'!D41 -> 31 | S18: ='10月'!D42 -> 0.2903225806 | AA18: ='10月'!F45 -> ◎ | AH18: 令6年10月 | AI18: 9 | AJ18: 31 | AK18: 0.285
A19: ='11月'!A6:B6 -> 令6年11月 | E19: ='11月'!C39 -> 11 | H19: ='11月'!C40 -> 30 | K19: ='11月'!C41 -> 0.3666666667 | M19: ='11月'!D39 -> 11 | P19: ='11月'!D40 -> 30 | S19: ='11月'!D41 -> 0.3666666667 | AA19: ='11月'!F44 -> ◎ | AH19: 令6年11月 | AI19: 9 | AJ19: 30 | AK19: 0.285
A20: ='12月'!A6:B6 -> 令6年12月 | E20: ='12月'!C40 -> 9 | H20: ='12月'!C41 -> 28 | K20: ='12月'!C42 -> 0.3214285714 | M20: ='12月'!D40 -> 9 | P20: ='12月'!D41 -> 28 | S20: ='12月'!D42 -> 0.3214285714 | U20: 年末休暇３日を除く | AA20: ='12月'!F45 -> ◎ | AH20: 令6年12月 | AI20: 8 | AJ20: 28 | AK20: 0.285
A21: ='1月'!A6:B6 -> 令7年1月 | E21: ='1月'!C40 -> 8 | H21: ='1月'!C41 -> 27 | K21: ='1月'!C42 -> 0.2962962963 | M21: ='1月'!D40 -> 8 | P21: ='1月'!D41 -> 27 | S21: ='1月'!D42 -> 0.2962962963 | U21: 年始休暇４日を除く | AA21: ='1月'!F45 -> ◎ | AH21: 令7年1月 | AI21: 8 | AJ21: 27 | AK21: 0.285
A22: ='2月'!A6:B6 -> 令7年2月 | E22: ='2月'!C38 -> 9 | H22: ='2月'!C39 -> 28 | K22: ='2月'!C40 -> 0.3214285714 | M22: ='2月'!D38 -> 7 | P22: ='2月'!D39 -> 28 | S22: ='2月'!D40 -> 0.25 | AA22: ='2月'!F43 -> × | AC22: =COUNTIF(AA12:AB23,"－") -> 1 | AH22: 令7年2月 | AI22: 8 | AJ22: 28 | AK22: 0.285
A23: ='3月'!A6:B6 -> 令7年3月 | E23: ='3月'!C40 -> 7 | H23: ='3月'!C41 -> 15 | K23: ='3月'!C42 -> 0.4666666667 | M23: ='3月'!D40 -> 5 | P23: ='3月'!D41 -> 15 | S23: ='3月'!D42 -> 0.3333333333 | U23: 3/15 現場施工完了 | AA23: ='3月'!F45 -> ◎ | AC23: =COUNTIF(AA12:AB23,"×") -> 1 | AH23: 令7年3月 | AI23: 5 | AJ23: 15 | AK23: 0.285
A24: 累 計 | E24: =SUM(E12:G23) -> 97 | H24: =SUM(H12:J23) -> 301 | K24: =E24/H24 -> 0.3222591362 | M24: =SUM(M13:M23) -> 94 | P24: =SUM(P12:R23) -> 301 | S24: =M24/P24 -> 0.3122923588 | U24: 月単位 | W24: =IF(AC22=12,"",IF(AC23>=1,"未","★達成")) -> 未 | AG24: 累計 | AH24: 通年 | AI24: 86 | AJ24: =SUM(AJ12:AJ23) -> 301 | AK24: =AK23 -> 0.285
E25: 計画 | H25: =IF(K24>=28.5%,"４週８休","未達成") -> ４週８休 | M25: 実績 | P25: =IF(S24>=28.5%,"４週８休","未達成") -> ４週８休 | U25: 通期 | W25: =IF(P25="４週８休","★達成","未") -> ★達成
A26: 【作成要領】 （１）確保工事に取り組む場合、受注者は、施工計画時の週休２日を確保した工程表に基づき、 対象期間内の閉所日、対象日を監督員と協議し決定する。 （２）閉所日、対象日の計画決定後、月ごとの別シート(以降、別シート)に予定を入力し「閉所計画・ 閉所実績書」(以降、「本書」)を作成する。 （３）閉所計画作成後、本書に別シートを添付し監督員に提出する （４）着手日以降、別シートの閉所実施日欄への入力を進め、本書と併せ、毎月監督員に提出する。 なお、計画と異なった場合は「現場閉所計画と現場閉所実績に差異がある場合等に記載」の欄 に、理由を記載する。

Sheet 4月
A2: 現場閉所実績書(月別シート) | K2: 月日数 | L2: =DAY(EOMONTH(J6,0)) -> 30
A3: 工事名： | B3: =別紙１!E6 -> ●●●●●●●●工事 | K3: 土日数 | L3: =COUNTIF(B9:B38,"土")+COUNTIF(B9:B38,"日") -> 8
A4: 受注者名： | B4: =別紙１!E7 -> ○○○○〇工業(株) | K4: 土日率 | L4: =L3/L2 -> 0.2666666667
A5: 工 期： | B5: =別紙１!E8 -> 令和７年４月17日～令和８年３月15日 | H5: 年月入力欄
A6: =TEXT(J6,"gge")&"年"&TEXT(J6,"m")&"月" -> 令6年4月 | H6: 年 | I6: =別紙１!W4 -> 2024 | J6: =DATE(I6,I7,1) -> 2024-04-01
A7: 月日 | B7: 曜日 | C7: 現場閉所 計画日 | D7: 現場閉所 実施日 | E7: 現場閉所計画と現場閉所実績に 差異がある場合等に記載 | F7: 祝祭日記入 | H7: 月 | I7: 4
A9: =DATE(I6,I7,1) -> 2024-04-01 | B9: =TEXT(A9,"aaa") -> 月 | C9: － | D9: －
A10: =A9+1 -> 2024-04-02 | B10: =TEXT(A10,"aaa") -> 火 | C10: － | D10: － | H10: リスト
A11: =A10+1 -> 2024-04-03 | B11: 水 | C11: － | D11: － | H11: 閉所 | I11: 〇
A12: 2024-04-04 | B12: 木 | C12: － | D12: － | H12: 現場休息 | I12: ●
A13: 2024-04-05 | B13: 金 | C13: － | D13: － | H13: 振替閉所 | I13: ◎
A14: 2024-04-06 | B14: 土 | C14: － | D14: － | H14: 対象外 | I14: －
A15: 2024-04-07 | B15: 日 | C15: － | D15: － | H15: 雨天等 | I15: 天
A16: 2024-04-08 | B16: 月 | C16: － | D16: －
A17: 2024-04-09 | B17: 火 | C17: － | D17: －
A18: 2024-04-10 | B18: 水 | C18: － | D18: －
A19: 2024-04-11 | B19: 木 | C19: － | D19: －
A20: 2024-04-12 | B20: 金 | C20: － | D20: －
A21: 2024-04-13 | B21: 土 | C21: － | D21: －
A22: 2024-04-14 | B22: 日 | C22: － | D22: －
A23: 2024-04-15 | B23: 月 | C23: － | D23: －
A24: 2024-04-16 | B24: 火 | C24: － | D24: －
A25: 2024-04-17 | B25: 水 | C25: － | D25: － | E25: 契約着工日
A26: 2024-04-18 | B26: 木 | C26: － | D26: － | E26: 対象期間外（現場施工着手前）
A27: 2024-04-19 | B27: 金 | C27: － | D27: － | E27: 対象期間外（現場施工着手前）
A28: 2024-04-20 | B28: 土 | C28: － | D28: － | E28: 対象期間外（現場施工着手前）
A29: 2024-04-21 | B29: 日 | C29: － | D29: － | E29: 対象期間外（現場施工着手前）
A30: 2024-04-22 | B30: 月 | C30: － | D30: － | E30: 対象期間外（現場施工着手前）
A31: 2024-04-23 | B31: 火 | C31: － | D31: － | E31: 対象期間外（現場施工着手前）
A32: 2024-04-24 | B32: 水 | C32: － | D32: － | E32: 対象期間外（現場施工着手前）
A33: 2024-04-25 | B33: 木 | C33: － | D33: － | E33: 対象期間外（現場施工着手前）
A34: 2024-04-26 | B34: 金 | C34: － | D34: － | E34: 対象期間外（現場施工着手前）
A35: 2024-04-27 | B35: 土 | C35: － | D35: － | E35: 対象期間外（現場施工着手前）
A36: 2024-04-28 | B36: 日 | C36: － | D36: － | E36: 対象期間外（現場施工着手前）
A37: 2024-04-29 | B37: 月 | C37: － | D37: － | E37: 対象期間外（現場施工着手前） | F37: 祝日
A38: =A37+1 -> 2024-04-30 | B38: 火 | C38: － | D38: － | E38: 対象期間外（現場施工着手前）
A39: 閉所日数 | C39: =COUNTIF(C9:C38,"〇")+COUNTIF(C9:C38,"◎")+COUNTIF(C9:C38,"天")+COUNTIF(C9:C38,"●") -> 0 | D39: =COUNTIF(D9:D38,"〇")+COUNTIF(D9:D38,"◎")+COUNTIF(D9:D38,"天")+COUNTIF(D9:D38,"●") -> 0
A40: 対象日数 | C40: =DAY(EOMONTH(J6,0))-COUNTIF(C9:C38,"－") -> 0 | D40: =DAY(EOMONTH(J6,0))-COUNTIF(D9:D38,"－") -> 0
A41: 閉所率 | C41: =IF(C40<>0,C39/C40,"対象外") -> 対象外 | D41: =IF(D40<>0,D39/D40,"対象外") -> 対象外 | F41: =IF(D41="対象外","対象外",IF(D41>=28.5%,"閉所率で達成","閉所率未達成")) -> 対象外
A42: 土日数 | B42: 0 | C42: =IF(D41<>"対象外",IF(L4<0.285,"※対象期間内の土日数を入力してください（手入力)",""),"") -> 
A43: 土日率 | B43: =IF(F41<>"対象外",IF(L4<0.285,L4,""),"") ->  | C43: =IF(B43<0.285,"※28.5%未満なので土日数で計算となります。","") ->  | F43: =IF(L4<0.285,IF(F41="対象外","",IF(B43<0.285,IF(B42<=D39,"土日数で達成","土日数未達成"),"")),"") -> 
E44: 達成の判定 | F44: =IF(F41="対象外","－",IF(OR(F41="閉所率で達成",F43="土日数で達成"),"◎","×")) -> －

Sheet 5月
A2: 現場閉所実績書(月別シート) | K2: 月日数 | L2: =DAY(EOMONTH(J6,0)) -> 31
A3: 工事名： | B3: =別紙１!E6 -> ●●●●●●●●工事 | K3: 土日数 | L3: =COUNTIF(B9:B39,"土")+COUNTIF(B9:B39,"日") -> 8
A4: 受注者名： | B4: =別紙１!E7 -> ○○○○〇工業(株) | K4: 土日率 | L4: =L3/L2 -> 0.2580645161
A5: 工 期： | B5: =別紙１!E8 -> 令和７年４月17日～令和８年３月15日 | H5: 年月入力欄
A6: =TEXT(J6,"gge")&"年"&TEXT(J6,"m")&"月" -> 令6年5月 | H6: 年 | I6: ='4月'!I6 -> 2024 | J6: =DATE(I6,I7,1) -> 2024-05-01
A7: 月日 | B7: 曜日 | C7: 現場閉所 計画日 | D7: 現場閉所 実施日 | E7: 現場閉所計画と現場閉所実績に 差異がある場合等に記載 | F7: 祝祭日記入 | H7: 月 | I7: 5
A9: =DATE(I6,I7,1) -> 2024-05-01 | B9: =TEXT(A9,"aaa") -> 水 | C9: － | D9: － | E9: 対象期間外（現場施工着手前）
A10: =A9+1 -> 2024-05-02 | B10: =TEXT(A10,"aaa") -> 木 | C10: － | D10: － | E10: 対象期間外（現場施工着手前） | H10: 凡例
A11: =A10+1 -> 2024-05-03 | B11: 金 | C11: － | D11: － | E11: 対象期間外（現場施工着手前） | F11: 祝日 | H11: 閉所 | I11: 〇
A12: 2024-05-04 | B12: 土 | C12: － | D12: － | E12: 対象期間外（現場施工着手前） | F12: 祝日 | H12: 現場休息 | I12: ●
A13: 2024-05-05 | B13: 日 | C13: － | D13: － | E13: 対象期間外（現場施工着手前） | F13: 祝日 | H13: 振替閉所 | I13: ◎
A14: 2024-05-06 | B14: 月 | C14: － | D14: － | E14: 対象期間外（現場施工着手前） | F14: 祝日 | H14: 対象外 | I14: －
A15: 2024-05-07 | B15: 火 | C15: － | D15: － | E15: 対象期間外（現場施工着手前） | H15: 雨天等 | I15: 天
A16: 2024-05-08 | B16: 水 | E16: 着手日
A17: 2024-05-09 | B17: 木
A18: 2024-05-10 | B18: 金 | C18: 〇 | D18: 〇
A19: 2024-05-11 | B19: 土 | C19: 〇 | D19: 〇
A20: 2024-05-12 | B20: 日
A21: 2024-05-13 | B21: 月
A22: 2024-05-14 | B22: 火
A23: 2024-05-15 | B23: 水
A24: 2024-05-16 | B24: 木
A25: 2024-05-17 | B25: 金 | C25: 〇 | D25: 〇
A26: 2024-05-18 | B26: 土 | C26: 〇 | D26: 〇
A27: 2024-05-19 | B27: 日
A28: 2024-05-20 | B28: 月
A29: 2024-05-21 | B29: 火
A30: 2024-05-22 | B30: 水
A31: 2024-05-23 | B31: 木
A32: 2024-05-24 | B32: 金 | C32: 〇 | D32: 〇
A33: 2024-05-25 | B33: 土 | C33: 〇 | D33: 〇
A34: 2024-05-26 | B34: 日
A35: 2024-05-27 | B35: 月
A36: 2024-05-28 | B36: 火
A37: 2024-05-29 | B37: 水
A38: 2024-05-30 | B38: 木
A39: 2024-05-31 | B39: 金 | C39: 〇 | D39: 〇
A40: 現場閉所日数 | C40: =COUNTIF(C9:C39,"〇")+COUNTIF(C9:C39,"◎")+COUNTIF(C9:C39,"天")+COUNTIF(C9:C39,"●") -> 7 | D40: =COUNTIF(D9:D39,"〇")+COUNTIF(D9:D39,"◎")+COUNTIF(D9:D39,"天")+COUNTIF(D9:D39,"●") -> 7
A41: 対象期間 | C41: =DAY(EOMONTH(J6,0))-COUNTIF(C9:C39,"－") -> 24 | D41: =DAY(EOMONTH(J6,0))-COUNTIF(D9:D39,"－") -> 24
A42: 閉所率 | C42: =IF(C41<>0,C40/C41,"対象外") -> 0.2916666667 | D42: =IF(D41<>0,D40/D41,"対象外") -> 0.2916666667 | F42: =IF(D42="対象外","対象外",IF(D42>=28.5%,"閉所率で達成","閉所率未達成")) -> 閉所率で達成
A43: 土日数 | B43: 7 | C43: =IF(D42<>"対象外",IF(L4<0.285,"※対象期間内の土日数を入力してください（手入力)",""),"") -> ※対象期間内の土日数を入力してください（手入力)
A44: 土日率 | B44: =IF(F42<>"対象外",IF(L4<0.285,L4,""),"") -> 0.2580645161 | C44: =IF(B44<0.285,"※28.5%未満なので土日数で計算となります。","") -> ※28.5%未満なので土日数で計算となります。 | F44: =IF(L5<0.285,IF(F42="対象外","",IF(B44<0.285,IF(B43<=D40,"土日数で達成","土日数未達成"),"")),"") -> 土日数で達成
E45: 達成の判定 | F45: =IF(F42="対象外","－",IF(OR(F42="閉所率で達成",F44="土日数で達成"),"◎","×")) -> ◎

Sheet 6月
A2: 現場閉所実績書(月別シート) | K2: 月日数 | L2: =DAY(EOMONTH(J6,0)) -> 30
A3: 工事名： | B3: =別紙１!E6 -> ●●●●●●●●工事 | K3: 土日数 | L3: =COUNTIF(B9:B38,"土")+COUNTIF(B9:B38,"日") -> 10
A4: 受注者名： | B4: =別紙１!E7 -> ○○○○〇工業(株) | K4: 土日率 | L4: =L3/L2 -> 0.3333333333
A5: 工 期： | B5: =別紙１!E8 -> 令和７年４月17日～令和８年３月15日 | H5: 年月入力欄
A6: =TEXT(J6,"gge")&"年"&TEXT(J6,"m")&"月" -> 令6年6月 | H6: 年 | I6: =別紙１!W4 -> 2024 | J6: =DATE(I6,I7,1) -> 2024-06-01
A7: 月日 | B7: 曜日 | C7: 現場閉所 計画日 | D7: 現場閉所 実施日 | E7: 現場閉所計画と現場閉所実績に 差異がある場合等に記載 | F7: 祝祭日記入 | H7: 月 | I7: 6
A9: =DATE(I6,I7,1) -> 2024-06-01 | B9: =TEXT(A9,"aaa") -> 土 | C9: 〇 | D9: 〇
A10: =A9+1 -> 2024-06-02 | B10: =TEXT(A10,"aaa") -> 日 | H10: リスト
A11: =A10+1 -> 2024-06-03 | B11: 月 | H11: 閉所 | I11: 〇
A12: 2024-06-04 | B12: 火 | H12: 現場休息 | I12: ●
A13: 2024-06-05 | B13: 水 | H13: 振替閉所 | I13: ◎
A14: 2024-06-06 | B14: 木 | H14: 対象外 | I14: －
A15: 2024-06-07 | B15: 金 | C15: 〇 | D15: 〇 | H15: 雨天等 | I15: 天
A16: 2024-06-08 | B16: 土 | C16: 〇 | D16: 〇
A17: 2024-06-09 | B17: 日
A18: 2024-06-10 | B18: 月
A19: 2024-06-11 | B19: 火
A20: 2024-06-12 | B20: 水
A21: 2024-06-13 | B21: 木
A22: 2024-06-14 | B22: 金
A23: 2024-06-15 | B23: 土 | C23: 〇 | D23: 〇
A24: 2024-06-16 | B24: 日 | C24: 〇 | E24: 地元との協議により作業実施
A25: 2024-06-17 | B25: 月 | D25: ◎ | E25: ６月16日の振替閉所
A26: 2024-06-18 | B26: 火
A27: 2024-06-19 | B27: 水
A28: 2024-06-20 | B28: 木
A29: 2024-06-21 | B29: 金 | C29: 〇 | D29: 〇
A30: 2024-06-22 | B30: 土 | C30: 〇 | D30: 〇
A31: 2024-06-23 | B31: 日 | D31: 天 | E31: 雨天により閉所（監督職員に連絡済）
A32: 2024-06-24 | B32: 月
A33: 2024-06-25 | B33: 火
A34: 2024-06-26 | B34: 水
A35: 2024-06-27 | B35: 木
A36: 2024-06-28 | B36: 金 | C36: 〇 | D36: 〇
A37: 2024-06-29 | B37: 土 | C37: 〇 | D37: 〇
A38: =A37+1 -> 2024-06-30 | B38: 日
A39: 現場閉所日数 | C39: =COUNTIF(C9:C38,"〇")+COUNTIF(C9:C38,"◎")+COUNTIF(C9:C38,"天")+COUNTIF(C9:C38,"●") -> 9 | D39: =COUNTIF(D9:D38,"〇")+COUNTIF(D9:D38,"◎")+COUNTIF(D9:D38,"天")+COUNTIF(D9:D38,"●") -> 10
A40: 対象期間 | C40: =DAY(EOMONTH(J6,0))-COUNTIF(C9:C38,"－") -> 30 | D40: =DAY(EOMONTH(J6,0))-COUNTIF(D9:D38,"－") -> 30
A41: 閉所率 | C41: =IF(C40<>0,C39/C40,"対象外") -> 0.3 | D41: =IF(D40<>0,D39/D40,"対象外") -> 0.3333333333 | F41: =IF(D41="対象外","対象外",IF(D41>=28.5%,"閉所率で達成","閉所率未達成")) -> 閉所率で達成
A42: 土日数 | B42: 9 | C42: =IF(D41<>"対象外",IF(L4<0.285,"※対象期間内の土日数を入力してください（手入力)",""),"") -> 
A43: 土日率 | B43: =IF(F41<>"対象外",IF(L4<0.285,L4,""),"") ->  | C43: =IF(B43<0.285,"※28.5%未満なので土日数で計算となります。","") ->  | F43: =IF(L4<0.285,IF(F41="対象外","",IF(B43<0.285,IF(B42<=D39,"土日数で達成","土日数未達成"),"")),"") -> 
E44: 達成の判定 | F44: =IF(F41="対象外","－",IF(OR(F41="閉所率で達成",F43="土日数で達成"),"◎","×")) -> ◎

Sheet 7月
A2: 現場閉所実績書(月別シート) | K2: 月日数 | L2: =DAY(EOMONTH(J6,0)) -> 31
A3: 工事名： | B3: =別紙１!E6 -> ●●●●●●●●工事 | K3: 土日数 | L3: =COUNTIF(B9:B39,"土")+COUNTIF(B9:B39,"日") -> 8
A4: 受注者名： | B4: =別紙１!E7 -> ○○○○〇工業(株) | K4: 土日率 | L4: =L3/L2 -> 0.2580645161
A5: 工 期： | B5: =別紙１!E8 -> 令和７年４月17日～令和８年３月15日 | H5: 年月入力欄
A6: =TEXT(J6,"gge")&"年"&TEXT(J6,"m")&"月" -> 令6年7月 | H6: 年 | I6: =別紙１!W4 -> 2024 | J6: =DATE(I6,I7,1) -> 2024-07-01
A7: 月日 | B7: 曜日 | C7: 現場閉所 計画日 | D7: 現場閉所 実施日 | E7: 現場閉所計画と現場閉所実績に 差異がある場合等に記載 | F7: 祝祭日記入 | H7: 月 | I7: 7
A9: =DATE(I6,I7,1) -> 2024-07-01 | B9: =TEXT(A9,"aaa") -> 月
A10: =A9+1 -> 2024-07-02 | B10: =TEXT(A10,"aaa") -> 火 | H10: 凡例
A11: =A10+1 -> 2024-07-03 | B11: 水 | H11: 閉所 | I11: 〇
A12: 2024-07-04 | B12: 木 | H12: 現場休息 | I12: ●
A13: 2024-07-05 | B13: 金 | C13: 〇 | D13: 〇 | H13: 振替閉所 | I13: ◎
A14: 2024-07-06 | B14: 土 | C14: 〇 | D14: 〇 | H14: 対象外 | I14: －
A15: 2024-07-07 | B15: 日 | D15: 天 | E15: 雨天により閉所（監督職員に連絡済） | H15: 雨天等 | I15: 天
A16: 2024-07-08 | B16: 月 | D16: 天 | E16: 雨天により閉所（監督職員に連絡済）
A17: 2024-07-09 | B17: 火
A18: 2024-07-10 | B18: 水
A19: 2024-07-11 | B19: 木
A20: 2024-07-12 | B20: 金 | C20: 〇 | E20: ７月７日休工の振替作業
A21: 2024-07-13 | B21: 土 | C21: 〇 | D21: 〇
A22: 2024-07-14 | B22: 日 | C22: 〇 | D22: 〇
A23: 2024-07-15 | B23: 月
A24: 2024-07-16 | B24: 火
A25: 2024-07-17 | B25: 水
A26: 2024-07-18 | B26: 木
A27: 2024-07-19 | B27: 金 | C27: 〇 | E27: ７月８日休工の振替作業
A28: 2024-07-20 | B28: 土 | C28: 〇 | D28: 〇
A29: 2024-07-21 | B29: 日 | C29: 〇 | D29: 〇 | F29: 祝日
A30: 2024-07-22 | B30: 月
A31: 2024-07-23 | B31: 火
A32: 2024-07-24 | B32: 水
A33: 2024-07-25 | B33: 木
A34: 2024-07-26 | B34: 金 | C34: 〇 | D34: 〇
A35: 2024-07-27 | B35: 土 | C35: 〇 | D35: 〇
A36: 2024-07-28 | B36: 日
A37: 2024-07-29 | B37: 月
A38: 2024-07-30 | B38: 火
A39: 2024-07-31 | B39: 水
A40: 現場閉所日数 | C40: =COUNTIF(C9:C39,"〇")+COUNTIF(C9:C39,"◎")+COUNTIF(C9:C39,"天")+COUNTIF(C9:C39,"●") -> 10 | D40: =COUNTIF(D9:D39,"〇")+COUNTIF(D9:D39,"◎")+COUNTIF(D9:D39,"天")+COUNTIF(D9:D39,"●") -> 10
A41: 対象期間 | C41: =DAY(EOMONTH(J6,0))-COUNTIF(C9:C39,"－") -> 31 | D41: =DAY(EOMONTH(J6,0))-COUNTIF(D9:D39,"－") -> 31
A42: 閉所率 | C42: =IF(C41<>0,C40/C41,"対象外") -> 0.3225806452 | D42: =IF(D41<>0,D40/D41,"対象外") -> 0.3225806452 | F42: =IF(D42="対象外","対象外",IF(D42>=28.5%,"閉所率で達成","閉所率未達成")) -> 閉所率で達成
A43: 土日数 | B43: 8 | C43: =IF(D42<>"対象外",IF(L4<0.285,"※対象期間内の土日数を入力してください（手入力)",""),"") -> ※対象期間内の土日数を入力してください（手入力)
A44: 土日率 | B44: =IF(F42<>"対象外",IF(L4<0.285,L4,""),"") -> 0.2580645161 | C44: =IF(B44<0.285,"※28.5%未満なので土日数で計算となります。","") -> ※28.5%未満なので土日数で計算となります。 | F44: =IF(L5<0.285,IF(F42="対象外","",IF(B44<0.285,IF(B43<=D40,"土日数で達成","土日数未達成"),"")),"") -> 土日数で達成
E45: 達成の判定 | F45: =IF(F42="対象外","－",IF(OR(F42="閉所率で達成",F44="土日数で達成"),"◎","×")) -> ◎

Sheet 8月
A2: 現場閉所実績書(月別シート) | K2: 月日数 | L2: =DAY(EOMONTH(J6,0)) -> 31
A3: 工事名： | B3: =別紙１!E6 -> ●●●●●●●●工事 | K3: 土日数 | L3: =COUNTIF(B9:B39,"土")+COUNTIF(B9:B39,"日") -> 9
A4: 受注者名： | B4: =別紙１!E7 -> ○○○○〇工業(株) | K4: 土日率 | L4: =L3/L2 -> 0.2903225806
A5: 工 期： | B5: =別紙１!E8 -> 令和７年４月17日～令和８年３月15日 | H5: 年月入力欄
A6: =TEXT(J6,"gge")&"年"&TEXT(J6,"m")&"月" -> 令6年8月 | H6: 年 | I6: =別紙１!W4 -> 2024 | J6: =DATE(I6,I7,1) -> 2024-08-01
A7: 月日 | B7: 曜日 | C7: 現場閉所 計画日 | D7: 現場閉所 実施日 | E7: 現場閉所計画と現場閉所実績に 差異がある場合等に記載 | F7: 祝祭日記入 | H7: 月 | I7: 8
A9: =DATE(I6,I7,1) -> 2024-08-01 | B9: =TEXT(A9,"aaa") -> 木
A10: =A9+1 -> 2024-08-02 | B10: =TEXT(A10,"aaa") -> 金 | C10: 〇 | D10: 〇 | H10: 凡例
A11: =A10+1 -> 2024-08-03 | B11: 土 | C11: 〇 | D11: 〇 | H11: 閉所 | I11: 〇
A12: 2024-08-04 | B12: 日 | H12: 現場休息 | I12: ●
A13: 2024-08-05 | B13: 月 | H13: 振替閉所 | I13: ◎
A14: 2024-08-06 | B14: 火 | H14: 対象外 | I14: －
A15: 2024-08-07 | B15: 水 | H15: 雨天等 | I15: 天
A16: 2024-08-08 | B16: 木
A17: 2024-08-09 | B17: 金
A18: 2024-08-10 | B18: 土 | C18: 〇 | D18: 〇
A19: 2024-08-11 | B19: 日 | C19: 〇 | D19: 〇 | F19: 祝日
A20: 2024-08-12 | B20: 月
A21: 2024-08-13 | B21: 火 | C21: － | D21: － | E21: 対象期間外（夏季休暇）
A22: 2024-08-14 | B22: 水 | C22: － | D22: － | E22: 対象期間外（夏季休暇）
A23: 2024-08-15 | B23: 木 | C23: － | D23: － | E23: 対象期間外（夏季休暇）
A24: 2024-08-16 | B24: 金 | C24: － | D24: － | E24: 対象期間外（夏季休暇）
A25: 2024-08-17 | B25: 土 | C25: 〇 | D25: 〇
A26: 2024-08-18 | B26: 日
A27: 2024-08-19 | B27: 月
A28: 2024-08-20 | B28: 火
A29: 2024-08-21 | B29: 水
A30: 2024-08-22 | B30: 木
A31: 2024-08-23 | B31: 金 | C31: 〇 | D31: 〇
A32: 2024-08-24 | B32: 土 | C32: 〇 | D32: 〇
A33: 2024-08-25 | B33: 日
A34: 2024-08-26 | B34: 月
A35: 2024-08-27 | B35: 火
A36: 2024-08-28 | B36: 水
A37: 2024-08-29 | B37: 木
A38: 2024-08-30 | B38: 金 | C38: 〇 | D38: 〇
A39: 2024-08-31 | B39: 土 | C39: 〇 | D39: 〇
A40: 現場閉所日数 | C40: =COUNTIF(C9:C39,"〇")+COUNTIF(C9:C39,"◎")+COUNTIF(C9:C39,"天")+COUNTIF(C9:C39,"●") -> 9 | D40: =COUNTIF(D9:D39,"〇")+COUNTIF(D9:D39,"◎")+COUNTIF(D9:D39,"天")+COUNTIF(D9:D39,"●") -> 9
A41: 対象期間 | C41: =DAY(EOMONTH(J6,0))-COUNTIF(C9:C39,"－") -> 27 | D41: =DAY(EOMONTH(J6,0))-COUNTIF(D9:D39,"－") -> 27
A42: 閉所率 | C42: =IF(C41<>0,C40/C41,"対象外") -> 0.3333333333 | D42: =IF(D41<>0,D40/D41,"対象外") -> 0.3333333333 | F42: =IF(D42="対象外","対象外",IF(D42>=28.5%,"閉所率で達成","閉所率未達成")) -> 閉所率で達成
A43: 土日数 | B43: 10 | C43: =IF(D42<>"対象外",IF(L4<0.285,"※対象期間内の土日数を入力してください（手入力)",""),"") -> 
A44: 土日率 | B44: =IF(F42<>"対象外",IF(L4<0.285,L4,""),"") ->  | C44: =IF(B44<0.285,"※28.5%未満なので土日数で計算となります。","") ->  | F44: =IF(L5<0.285,IF(F42="対象外","",IF(B44<0.285,IF(B43<=D40,"土日数で達成","土日数未達成"),"")),"") -> 
E45: 達成の判定 | F45: =IF(F42="対象外","－",IF(OR(F42="閉所率で達成",F44="土日数で達成"),"◎","×")) -> ◎

Sheet 9月
A2: 現場閉所実績書(月別シート) | K2: 月日数 | L2: =DAY(EOMONTH(J6,0)) -> 30
A3: 工事名： | B3: =別紙１!E6 -> ●●●●●●●●工事 | K3: 土日数 | L3: =COUNTIF(B9:B38,"土")+COUNTIF(B9:B38,"日") -> 9
A4: 受注者名： | B4: =別紙１!E7 -> ○○○○〇工業(株) | K4: 土日率 | L4: =L3/L2 -> 0.3
A5: 工 期： | B5: =別紙１!E8 -> 令和７年４月17日～令和８年３月15日 | H5: 年月入力欄
A6: =TEXT(J6,"gge")&"年"&TEXT(J6,"m")&"月" -> 令6年9月 | H6: 年 | I6: =別紙１!W4 -> 2024 | J6: =DATE(I6,I7,1) -> 2024-09-01
A7: 月日 | B7: 曜日 | C7: 現場閉所 計画日 | D7: 現場閉所 実施日 | E7: 現場閉所計画と現場閉所実績に 差異がある場合等に記載 | F7: 祝祭日記入 | H7: 月 | I7: 9
A9: =DATE(I6,I7,1) -> 2024-09-01 | B9: =TEXT(A9,"aaa") -> 日
A10: =A9+1 -> 2024-09-02 | B10: =TEXT(A10,"aaa") -> 月 | H10: リスト
A11: =A10+1 -> 2024-09-03 | B11: 火 | H11: 閉所 | I11: 〇
A12: 2024-09-04 | B12: 水 | H12: 現場休息 | I12: ●
A13: 2024-09-05 | B13: 木 | H13: 振替閉所 | I13: ◎
A14: 2024-09-06 | B14: 金 | C14: 〇 | D14: 〇 | H14: 対象外 | I14: －
A15: 2024-09-07 | B15: 土 | C15: 〇 | D15: 〇 | H15: 雨天等 | I15: 天
A16: 2024-09-08 | B16: 日
A17: 2024-09-09 | B17: 月
A18: 2024-09-10 | B18: 火
A19: 2024-09-11 | B19: 水
A20: 2024-09-12 | B20: 木
A21: 2024-09-13 | B21: 金 | C21: 〇 | D21: 〇
A22: 2024-09-14 | B22: 土 | C22: 〇 | D22: 〇
A23: 2024-09-15 | B23: 日
A24: 2024-09-16 | B24: 月 | F24: 祝日
A25: 2024-09-17 | B25: 火
A26: 2024-09-18 | B26: 水
A27: 2024-09-19 | B27: 木
A28: 2024-09-20 | B28: 金 | C28: 〇 | D28: 〇
A29: 2024-09-21 | B29: 土 | C29: 〇 | D29: 〇
A30: 2024-09-22 | B30: 日
A31: 2024-09-23 | B31: 月 | C31: 〇 | D31: 〇 | F31: 祝日
A32: 2024-09-24 | B32: 火
A33: 2024-09-25 | B33: 水
A34: 2024-09-26 | B34: 木
A35: 2024-09-27 | B35: 金 | C35: 〇 | D35: 〇
A36: 2024-09-28 | B36: 土 | C36: 〇 | D36: 〇
A37: 2024-09-29 | B37: 日
A38: =A37+1 -> 2024-09-30 | B38: 月
A39: 現場閉所日数 | C39: =COUNTIF(C9:C38,"〇")+COUNTIF(C9:C38,"◎")+COUNTIF(C9:C38,"天")+COUNTIF(C9:C38,"●") -> 9 | D39: =COUNTIF(D9:D38,"〇")+COUNTIF(D9:D38,"◎")+COUNTIF(D9:D38,"天")+COUNTIF(D9:D38,"●") -> 9
A40: 対象期間 | C40: =DAY(EOMONTH(J6,0))-COUNTIF(C9:C38,"－") -> 30 | D40: =DAY(EOMONTH(J6,0))-COUNTIF(D9:D38,"－") -> 30
A41: 閉所率 | C41: =IF(C40<>0,C39/C40,"対象外") -> 0.3 | D41: =IF(D40<>0,D39/D40,"対象外") -> 0.3 | F41: =IF(D41="対象外","対象外",IF(D41>=28.5%,"閉所率で達成","閉所率未達成")) -> 閉所率で達成
A42: 土日数 | B42: 8 | C42: =IF(D41<>"対象外",IF(L4<0.285,"※対象期間内の土日数を入力してください（手入力)",""),"") -> 
A43: 土日率 | B43: =IF(F41<>"対象外",IF(L4<0.285,L4,""),"") ->  | C43: =IF(B43<0.285,"※28.5%未満なので土日数で計算となります。","") ->  | F43: =IF(L4<0.285,IF(F41="対象外","",IF(B43<0.285,IF(B42<=D39,"土日数で達成","土日数未達成"),"")),"") -> 
E44: 達成の判定 | F44: =IF(F41="対象外","－",IF(OR(F41="閉所率で達成",F43="土日数で達成"),"◎","×")) -> ◎

Sheet 10月
A2: 現場閉所実績書(月別シート) | K2: 月日数 | L2: =DAY(EOMONTH(J6,0)) -> 31
A3: 工事名： | B3: =別紙１!E6 -> ●●●●●●●●工事 | K3: 土日数 | L3: =COUNTIF(B9:B39,"土")+COUNTIF(B9:B39,"日") -> 8
A4: 受注者名： | B4: =別紙１!E7 -> ○○○○〇工業(株) | K4: 土日率 | L4: =L3/L2 -> 0.2580645161
A5: 工 期： | B5: =別紙１!E8 -> 令和７年４月17日～令和８年３月15日 | H5: 年月入力欄
A6: =TEXT(J6,"gge")&"年"&TEXT(J6,"m")&"月" -> 令6年10月 | H6: 年 | I6: =別紙１!W4 -> 2024 | J6: =DATE(I6,I7,1) -> 2024-10-01
A7: 月日 | B7: 曜日 | C7: 現場閉所 計画日 | D7: 現場閉所 実施日 | E7: 現場閉所計画と現場閉所実績に 差異がある場合等に記載 | F7: 祝祭日記入 | H7: 月 | I7: 10
A9: =DATE(I6,I7,1) -> 2024-10-01 | B9: =TEXT(A9,"aaa") -> 火
A10: =A9+1 -> 2024-10-02 | B10: =TEXT(A10,"aaa") -> 水 | H10: 凡例
A11: =A10+1 -> 2024-10-03 | B11: 木 | H11: 閉所 | I11: 〇
A12: 2024-10-04 | B12: 金 | C12: 〇 | D12: 〇 | H12: 現場休息 | I12: ●
A13: 2024-10-05 | B13: 土 | C13: 〇 | D13: 〇 | H13: 振替閉所 | I13: ◎
A14: 2024-10-06 | B14: 日 | H14: 対象外 | I14: －
A15: 2024-10-07 | B15: 月 | H15: 雨天等 | I15: 天
A16: 2024-10-08 | B16: 火
A17: 2024-10-09 | B17: 水
A18: 2024-10-10 | B18: 木
A19: 2024-10-11 | B19: 金 | C19: 〇 | D19: 〇
A20: 2024-10-12 | B20: 土 | C20: 〇 | D20: 〇
A21: 2024-10-13 | B21: 日 | C21: 〇 | D21: 〇 | F21: 祝日
A22: 2024-10-14 | B22: 月
A23: 2024-10-15 | B23: 火
A24: 2024-10-16 | B24: 水
A25: 2024-10-17 | B25: 木
A26: 2024-10-18 | B26: 金 | C26: 〇 | D26: 〇
A27: 2024-10-19 | B27: 土 | C27: 〇 | D27: 〇
A28: 2024-10-20 | B28: 日
A29: 2024-10-21 | B29: 月
A30: 2024-10-22 | B30: 火
A31: 2024-10-23 | B31: 水
A32: 2024-10-24 | B32: 木
A33: 2024-10-25 | B33: 金 | C33: 〇 | D33: 〇
A34: 2024-10-26 | B34: 土 | C34: 〇 | D34: 〇
A35: 2024-10-27 | B35: 日
A36: 2024-10-28 | B36: 月
A37: 2024-10-29 | B37: 火
A38: 2024-10-30 | B38: 水
A39: 2024-10-31 | B39: 木
A40: 現場閉所日数 | C40: =COUNTIF(C9:C39,"〇")+COUNTIF(C9:C39,"◎")+COUNTIF(C9:C39,"天")+COUNTIF(C9:C39,"●") -> 9 | D40: =COUNTIF(D9:D39,"〇")+COUNTIF(D9:D39,"◎")+COUNTIF(D9:D39,"天")+COUNTIF(D9:D39,"●") -> 9
A41: 対象期間 | C41: =DAY(EOMONTH(J6,0))-COUNTIF(C9:C39,"－") -> 31 | D41: =DAY(EOMONTH(J6,0))-COUNTIF(D9:D39,"－") -> 31
A42: 閉所率 | C42: =IF(C41<>0,C40/C41,"対象外") -> 0.2903225806 | D42: =IF(D41<>0,D40/D41,"対象外") -> 0.2903225806 | F42: =IF(D42="対象外","対象外",IF(D42>=28.5%,"閉所率で達成","閉所率未達成")) -> 閉所率で達成
A43: 土日数 | B43: 8 | C43: =IF(D42<>"対象外",IF(L4<0.285,"※対象期間内の土日数を入力してください（手入力)",""),"") -> ※対象期間内の土日数を入力してください（手入力)
A44: 土日率 | B44: =IF(F42<>"対象外",IF(L4<0.285,L4,""),"") -> 0.2580645161 | C44: =IF(B44<0.285,"※28.5%未満なので土日数で計算となります。","") -> ※28.5%未満なので土日数で計算となります。 | F44: =IF(L5<0.285,IF(F42="対象外","",IF(B44<0.285,IF(B43<=D40,"土日数で達成","土日数未達成"),"")),"") -> 土日数で達成
E45: 達成の判定 | F45: =IF(F42="対象外","－",IF(OR(F42="閉所率で達成",F44="土日数で達成"),"◎","×")) -> ◎

Sheet 11月
A2: 現場閉所実績書(月別シート) | K2: 月日数 | L2: =DAY(EOMONTH(J6,0)) -> 30
A3: 工事名： | B3: =別紙１!E6 -> ●●●●●●●●工事 | K3: 土日数 | L3: =COUNTIF(B9:B38,"土")+COUNTIF(B9:B38,"日") -> 9
A4: 受注者名： | B4: =別紙１!E7 -> ○○○○〇工業(株) | K4: 土日率 | L4: =L3/L2 -> 0.3
A5: 工 期： | B5: =別紙１!E8 -> 令和７年４月17日～令和８年３月15日 | H5: 年月入力欄
A6: =TEXT(J6,"gge")&"年"&TEXT(J6,"m")&"月" -> 令6年11月 | H6: 年 | I6: =別紙１!W4 -> 2024 | J6: =DATE(I6,I7,1) -> 2024-11-01
A7: 月日 | B7: 曜日 | C7: 現場閉所 計画日 | D7: 現場閉所 実施日 | E7: 現場閉所計画と現場閉所実績に 差異がある場合等に記載 | F7: 祝祭日記入 | H7: 月 | I7: 11
A9: =DATE(I6,I7,1) -> 2024-11-01 | B9: =TEXT(A9,"aaa") -> 金 | C9: 〇 | D9: 〇
A10: =A9+1 -> 2024-11-02 | B10: =TEXT(A10,"aaa") -> 土 | C10: 〇 | D10: 〇 | H10: リスト
A11: =A10+1 -> 2024-11-03 | B11: 日 | C11: 〇 | D11: 〇 | F11: 祝日 | H11: 閉所 | I11: 〇
A12: 2024-11-04 | B12: 月 | H12: 現場休息 | I12: ●
A13: 2024-11-05 | B13: 火 | H13: 振替閉所 | I13: ◎
A14: 2024-11-06 | B14: 水 | H14: 対象外 | I14: －
A15: 2024-11-07 | B15: 木 | H15: 雨天等 | I15: 天
A16: 2024-11-08 | B16: 金 | C16: 〇 | D16: 〇
A17: 2024-11-09 | B17: 土 | C17: 〇 | D17: 〇
A18: 2024-11-10 | B18: 日
A19: 2024-11-11 | B19: 月
A20: 2024-11-12 | B20: 火
A21: 2024-11-13 | B21: 水
A22: 2024-11-14 | B22: 木
A23: 2024-11-15 | B23: 金 | C23: 〇 | D23: 〇
A24: 2024-11-16 | B24: 土 | C24: 〇 | D24: 〇
A25: 2024-11-17 | B25: 日
A26: 2024-11-18 | B26: 月
A27: 2024-11-19 | B27: 火
A28: 2024-11-20 | B28: 水
A29: 2024-11-21 | B29: 木
A30: 2024-11-22 | B30: 金 | C30: 〇 | D30: 〇
A31: 2024-11-23 | B31: 土 | C31: 〇 | D31: 〇
A32: 2024-11-24 | B32: 日 | C32: 〇 | D32: 〇 | F32: 祝日
A33: 2024-11-25 | B33: 月
A34: 2024-11-26 | B34: 火
A35: 2024-11-27 | B35: 水
A36: 2024-11-28 | B36: 木
A37: 2024-11-29 | B37: 金
A38: =A37+1 -> 2024-11-30 | B38: 土 | C38: 〇 | D38: 〇
A39: 現場閉所日数 | C39: =COUNTIF(C9:C38,"〇")+COUNTIF(C9:C38,"◎")+COUNTIF(C9:C38,"天")+COUNTIF(C9:C38,"●") -> 11 | D39: =COUNTIF(D9:D38,"〇")+COUNTIF(D9:D38,"◎")+COUNTIF(D9:D38,"天")+COUNTIF(D9:D38,"●") -> 11
A40: 対象期間 | C40: =DAY(EOMONTH(J6,0))-COUNTIF(C9:C38,"－") -> 30 | D40: =DAY(EOMONTH(J6,0))-COUNTIF(D9:D38,"－") -> 30
A41: 閉所率 | C41: =IF(C40<>0,C39/C40,"対象外") -> 0.3666666667 | D41: =IF(D40<>0,D39/D40,"対象外") -> 0.3666666667 | F41: =IF(D41="対象外","対象外",IF(D41>=28.5%,"閉所率で達成","閉所率未達成")) -> 閉所率で達成
A42: 土日数 | B42: 10 | C42: =IF(D41<>"対象外",IF(L4<0.285,"※対象期間内の土日数を入力してください（手入力)",""),"") -> 
A43: 土日率 | B43: =IF(F41<>"対象外",IF(L4<0.285,L4,""),"") ->  | C43: =IF(B43<0.285,"※28.5%未満なので土日数で計算となります。","") ->  | F43: =IF(L4<0.285,IF(F41="対象外","",IF(B43<0.285,IF(B42<=D39,"土日数で達成","土日数未達成"),"")),"") -> 
E44: 達成の判定 | F44: =IF(F41="対象外","－",IF(OR(F41="閉所率で達成",F43="土日数で達成"),"◎","×")) -> ◎

Sheet 12月
A2: 現場閉所実績書(月別シート) | K2: 月日数 | L2: =DAY(EOMONTH(J6,0)) -> 31
A3: 工事名： | B3: =別紙１!E6 -> ●●●●●●●●工事 | K3: 土日数 | L3: =COUNTIF(B9:B39,"土")+COUNTIF(B9:B39,"日") -> 9
A4: 受注者名： | B4: =別紙１!E7 -> ○○○○〇工業(株) | K4: 土日率 | L4: =L3/L2 -> 0.2903225806
A5: 工 期： | B5: =別紙１!E8 -> 令和７年４月17日～令和８年３月15日 | H5: 年月入力欄
A6: =TEXT(J6,"gge")&"年"&TEXT(J6,"m")&"月" -> 令6年12月 | H6: 年 | I6: =別紙１!W4 -> 2024 | J6: =DATE(I6,I7,1) -> 2024-12-01
A7: 月日 | B7: 曜日 | C7: 現場閉所 計画日 | D7: 現場閉所 実施日 | E7: 現場閉所計画と現場閉所実績に 差異がある場合等に記載 | F7: 祝祭日記入 | H7: 月 | I7: 12
A9: =DATE(I6,I7,1) -> 2024-12-01 | B9: =TEXT(A9,"aaa") -> 日 | C9: 〇 | D9: 〇
A10: =A9+1 -> 2024-12-02 | B10: =TEXT(A10,"aaa") -> 月 | H10: 凡例
A11: =A10+1 -> 2024-12-03 | B11: 火 | H11: 閉所 | I11: 〇
A12: 2024-12-04 | B12: 水 | H12: 現場休息 | I12: ●
A13: 2024-12-05 | B13: 木 | H13: 振替閉所 | I13: ◎
A14: 2024-12-06 | B14: 金 | C14: 〇 | D14: 〇 | H14: 対象外 | I14: －
A15: 2024-12-07 | B15: 土 | C15: 〇 | D15: 〇 | H15: 雨天等 | I15: 天
A16: 2024-12-08 | B16: 日
A17: 2024-12-09 | B17: 月
A18: 2024-12-10 | B18: 火
A19: 2024-12-11 | B19: 水
A20: 2024-12-12 | B20: 木
A21: 2024-12-13 | B21: 金 | C21: 〇 | D21: 〇
A22: 2024-12-14 | B22: 土 | C22: 〇 | D22: 〇
A23: 2024-12-15 | B23: 日
A24: 2024-12-16 | B24: 月
A25: 2024-12-17 | B25: 火
A26: 2024-12-18 | B26: 水
A27: 2024-12-19 | B27: 木
A28: 2024-12-20 | B28: 金 | C28: 〇 | D28: 〇
A29: 2024-12-21 | B29: 土 | C29: 〇 | D29: 〇
A30: 2024-12-22 | B30: 日
A31: 2024-12-23 | B31: 月
A32: 2024-12-24 | B32: 火
A33: 2024-12-25 | B33: 水
A34: 2024-12-26 | B34: 木
A35: 2024-12-27 | B35: 金 | C35: 〇 | D35: 〇
A36: 2024-12-28 | B36: 土 | C36: 〇 | D36: 〇
A37: 2024-12-29 | B37: 日 | C37: － | D37: － | E37: 対象期間外（年末年始休暇）
A38: 2024-12-30 | B38: 月 | C38: － | D38: － | E38: 対象期間外（年末年始休暇）
A39: 2024-12-31 | B39: 火 | C39: － | D39: － | E39: 対象期間外（年末年始休暇）
A40: 現場閉所日数 | C40: =COUNTIF(C9:C39,"〇")+COUNTIF(C9:C39,"◎")+COUNTIF(C9:C39,"天")+COUNTIF(C9:C39,"●") -> 9 | D40: =COUNTIF(D9:D39,"〇")+COUNTIF(D9:D39,"◎")+COUNTIF(D9:D39,"天")+COUNTIF(D9:D39,"●") -> 9
A41: 対象期間 | C41: =DAY(EOMONTH(J6,0))-COUNTIF(C9:C39,"－") -> 28 | D41: =DAY(EOMONTH(J6,0))-COUNTIF(D9:D39,"－") -> 28
A42: 閉所率 | C42: =IF(C41<>0,C40/C41,"対象外") -> 0.3214285714 | D42: =IF(D41<>0,D40/D41,"対象外") -> 0.3214285714 | F42: =IF(D42="対象外","対象外",IF(D42>=28.5%,"閉所率で達成","閉所率未達成")) -> 閉所率で達成
A43: 土日数 | B43: 8 | C43: =IF(D42<>"対象外",IF(L4<0.285,"※対象期間内の土日数を入力してください（手入力)",""),"") -> 
A44: 土日率 | B44: =IF(F42<>"対象外",IF(L4<0.285,L4,""),"") ->  | C44: =IF(B44<0.285,"※28.5%未満なので土日数で計算となります。","") ->  | F44: =IF(L4<0.285,IF(F42="対象外","",IF(B44<0.285,IF(B43<=D40,"土日数で達成","土日数未達成"),"")),"") -> 
E45: 達成の判定 | F45: =IF(F42="対象外","－",IF(OR(F42="閉所率で達成",F44="土日数で達成"),"◎","×")) -> ◎

Sheet 1月
A2: 現場閉所実績書(月別シート) | K2: 月日数 | L2: =DAY(EOMONTH(J6,0)) -> 31
A3: 工事名： | B3: =別紙１!E6 -> ●●●●●●●●工事 | K3: 土日数 | L3: =COUNTIF(B9:B39,"土")+COUNTIF(B9:B39,"日") -> 8
A4: 受注者名： | B4: =別紙１!E7 -> ○○○○〇工業(株) | K4: 土日率 | L4: =L3/L2 -> 0.2580645161
A5: 工 期： | B5: =別紙１!E8 -> 令和７年４月17日～令和８年３月15日 | H5: 年月入力欄
A6: =TEXT(J6,"gge")&"年"&TEXT(J6,"m")&"月" -> 令7年1月 | H6: 年 | I6: =別紙１!W4+1 -> 2025 | J6: =DATE(I6,I7,1) -> 2025-01-01
A7: 月日 | B7: 曜日 | C7: 現場閉所 計画日 | D7: 現場閉所 実施日 | E7: 現場閉所計画と現場閉所実績に 差異がある場合等に記載 | F7: 祝祭日記入 | H7: 月 | I7: 1
A9: =DATE(I6,I7,1) -> 2025-01-01 | B9: =TEXT(A9,"aaa") -> 水 | C9: － | D9: － | E9: 対象期間外（年末年始休暇） | F9: 祝日
A10: =A9+1 -> 2025-01-02 | B10: =TEXT(A10,"aaa") -> 木 | C10: － | D10: － | E10: 対象期間外（年末年始休暇） | H10: 凡例
A11: =A10+1 -> 2025-01-03 | B11: 金 | C11: － | D11: － | E11: 対象期間外（年末年始休暇） | H11: 閉所 | I11: 〇
A12: 2025-01-04 | B12: 土 | C12: － | D12: － | E12: 対象期間外（年末年始休暇） | H12: 現場休息 | I12: ●
A13: 2025-01-05 | B13: 日 | C13: 〇 | D13: 〇 | H13: 振替閉所 | I13: ◎
A14: 2025-01-06 | B14: 月 | H14: 対象外 | I14: －
A15: 2025-01-07 | B15: 火 | H15: 雨天等 | I15: 天
A16: 2025-01-08 | B16: 水
A17: 2025-01-09 | B17: 木
A18: 2025-01-10 | B18: 金
A19: 2025-01-11 | B19: 土 | C19: 〇 | D19: 〇
A20: 2025-01-12 | B20: 日 | C20: 〇 | D20: 〇
A21: 2025-01-13 | B21: 月 | C21: 〇 | D21: 〇 | F21: 祝日
A22: 2025-01-14 | B22: 火
A23: 2025-01-15 | B23: 水
A24: 2025-01-16 | B24: 木
A25: 2025-01-17 | B25: 金
A26: 2025-01-18 | B26: 土 | C26: 〇 | D26: 〇
A27: 2025-01-19 | B27: 日 | C27: 〇 | D27: 〇
A28: 2025-01-20 | B28: 月
A29: 2025-01-21 | B29: 火
A30: 2025-01-22 | B30: 水
A31: 2025-01-23 | B31: 木
A32: 2025-01-24 | B32: 金
A33: 2025-01-25 | B33: 土 | C33: 〇 | D33: 〇
A34: 2025-01-26 | B34: 日 | C34: 〇 | D34: 〇
A35: 2025-01-27 | B35: 月
A36: 2025-01-28 | B36: 火
A37: 2025-01-29 | B37: 水
A38: 2025-01-30 | B38: 木
A39: 2025-01-31 | B39: 金
A40: 現場閉所日数 | C40: =COUNTIF(C9:C39,"〇")+COUNTIF(C9:C39,"◎")+COUNTIF(C9:C39,"天")+COUNTIF(C9:C39,"●") -> 8 | D40: =COUNTIF(D9:D39,"〇")+COUNTIF(D9:D39,"◎")+COUNTIF(D9:D39,"天")+COUNTIF(D9:D39,"●") -> 8
A41: 対象期間 | C41: =DAY(EOMONTH(J6,0))-COUNTIF(C9:C39,"－") -> 27 | D41: =DAY(EOMONTH(J6,0))-COUNTIF(D9:D39,"－") -> 27
A42: 閉所率 | C42: =IF(C41<>0,C40/C41,"対象外") -> 0.2962962963 | D42: =IF(D41<>0,D40/D41,"対象外") -> 0.2962962963 | F42: =IF(D42="対象外","対象外",IF(D42>=28.5%,"閉所率で達成","閉所率未達成")) -> 閉所率で達成
A43: 土日数 | B43: 7 | C43: =IF(D42<>"対象外",IF(L4<0.285,"※対象期間内の土日数を入力してください（手入力)",""),"") -> ※対象期間内の土日数を入力してください（手入力)
A44: 土日率 | B44: =IF(F42<>"対象外",IF(L4<0.285,L4,""),"") -> 0.2580645161 | C44: =IF(B44<0.285,"※28.5%未満なので土日数で計算となります。","") -> ※28.5%未満なので土日数で計算となります。 | F44: =IF(L4<0.285,IF(F42="対象外","",IF(B44<0.285,IF(B43<=D40,"土日数で達成","土日数未達成"),"")),"") -> 土日数で達成
E45: 達成の判定 | F45: =IF(F42="対象外","－",IF(OR(F42="閉所率で達成",F44="土日数で達成"),"◎","×")) -> ◎

Sheet 2月
A2: 現場閉所実績書(月別シート) | K2: 月日数 | L2: =DAY(EOMONTH(J6,0)) -> 28
A3: 工事名： | B3: =別紙１!E6 -> ●●●●●●●●工事 | K3: 土日数 | L3: =COUNTIF(B9:B37,"土")+COUNTIF(B9:B37,"日") -> 9
A4: 受注者名： | B4: =別紙１!E7 -> ○○○○〇工業(株) | K4: 土日率 | L4: =L3/L2 -> 0.3214285714
A5: 工 期： | B5: =別紙１!E8 -> 令和７年４月17日～令和８年３月15日 | H5: 年月入力欄
A6: =TEXT(J6,"gge")&"年"&TEXT(J6,"m")&"月" -> 令7年2月 | H6: 年 | I6: ='1月'!I6 -> 2025 | J6: =DATE(I6,I7,1) -> 2025-02-01
A7: 月日 | B7: 曜日 | C7: 現場閉所 計画日 | D7: 現場閉所 実施日 | E7: 現場閉所計画と現場閉所実績に 差異がある場合等に記載 | F7: 祝祭日記入 | H7: 月 | I7: 2
A9: =DATE(I6,I7,1) -> 2025-02-01 | B9: =TEXT(A9,"aaa") -> 土 | C9: 〇 | D9: 〇
A10: =A9+1 -> 2025-02-02 | B10: =TEXT(A10,"aaa") -> 日 | H10: リスト
A11: =A10+1 -> 2025-02-03 | B11: 月 | H11: 閉所 | I11: 〇
A12: 2025-02-04 | B12: 火 | H12: 現場休息 | I12: ●
A13: 2025-02-05 | B13: 水 | H13: 振替閉所 | I13: ◎
A14: 2025-02-06 | B14: 木 | H14: 対象外 | I14: －
A15: 2025-02-07 | B15: 金 | C15: 〇 | D15: 〇 | H15: 雨天等 | I15: 天
A16: 2025-02-08 | B16: 土 | C16: 〇 | D16: 〇
A17: 2025-02-09 | B17: 日
A18: 2025-02-10 | B18: 月
A19: 2025-02-11 | B19: 火 | F19: 祝日
A20: 2025-02-12 | B20: 水
A21: 2025-02-13 | B21: 木
A22: 2025-02-14 | B22: 金 | C22: 〇 | E22: 残工事対応のため開所
A23: 2025-02-15 | B23: 土 | C23: 〇 | D23: 〇
A24: 2025-02-16 | B24: 日 | C24: 〇 | D24: 〇
A25: 2025-02-17 | B25: 月
A26: 2025-02-18 | B26: 火
A27: 2025-02-19 | B27: 水
A28: 2025-02-20 | B28: 木
A29: 2025-02-21 | B29: 金 | C29: 〇 | E29: 残工事対応のため開所
A30: 2025-02-22 | B30: 土 | C30: 〇 | D30: 〇
A31: 2025-02-23 | B31: 日
A32: 2025-02-24 | B32: 月
A33: 2025-02-25 | B33: 火
A34: 2025-02-26 | B34: 水
A35: 2025-02-27 | B35: 木
A36: 2025-02-28 | B36: 金 | C36: 〇 | D36: 〇
A37: =A36+1 -> 2025-03-01 | B37: 土
A38: 現場閉所日数 | C38: =COUNTIF(C9:C37,"〇")+COUNTIF(C9:C37,"◎")+COUNTIF(C9:C37,"天")+COUNTIF(C9:C37,"●") -> 9 | D38: =COUNTIF(D9:D37,"〇")+COUNTIF(D9:D37,"◎")+COUNTIF(D9:D37,"天")+COUNTIF(D9:D37,"●") -> 7
A39: 対象期間 | C39: =DAY(EOMONTH(J6,0))-COUNTIF(C9:C37,"－") -> 28 | D39: =DAY(EOMONTH(J6,0))-COUNTIF(D9:D37,"－") -> 28
A40: 閉所率 | C40: =IF(C39<>0,C38/C39,"対象外") -> 0.3214285714 | D40: =IF(D39<>0,D38/D39,"対象外") -> 0.25 | F40: =IF(D40="対象外","対象外",IF(D40>=28.5%,"閉所率で達成","閉所率未達成")) -> 閉所率未達成
A41: 土日数 | B41: 9 | C41: =IF(D40<>"対象外",IF(L4<0.285,"※対象期間内の土日数を入力してください（手入力)",""),"") -> 
A42: 土日率 | B42: =IF(F40<>"対象外",IF(L4<0.285,L4,""),"") ->  | C42: =IF(B42<0.285,"※28.5%未満なので土日数で計算となります。","") ->  | F42: =IF(L4<0.285,IF(F40="対象外","",IF(B42<0.285,IF(B41<=D38,"土日数で達成","土日数未達成"),"")),"") -> 
E43: 達成の判定 | F43: =IF(F40="対象外","－",IF(OR(F40="閉所率で達成",F42="土日数で達成"),"◎","×")) -> ×

Sheet 3月
A2: 現場閉所実績書(月別シート) | K2: 月日数 | L2: =DAY(EOMONTH(J6,0)) -> 31
A3: 工事名： | B3: =別紙１!E6 -> ●●●●●●●●工事 | K3: 土日数 | L3: =COUNTIF(B9:B38,"土")+COUNTIF(B9:B38,"日") -> 10
A4: 受注者名： | B4: =別紙１!E7 -> ○○○○〇工業(株) | K4: 土日率 | L4: =L3/L2 -> 0.3225806452
A5: 工 期： | B5: =別紙１!E8 -> 令和７年４月17日～令和８年３月15日 | H5: 年月入力欄
A6: =TEXT(J6,"gge")&"年"&TEXT(J6,"m")&"月" -> 令7年3月 | H6: 年 | I6: ='2月'!I6 -> 2025 | J6: =DATE(I6,I7,1) -> 2025-03-01
A7: 月日 | B7: 曜日 | C7: 現場閉所 計画日 | D7: 現場閉所 実施日 | E7: 現場閉所計画と現場閉所実績に 差異がある場合等に記載 | F7: 祝祭日記入 | H7: 月 | I7: 3
A9: =DATE(I6,I7,1) -> 2025-03-01 | B9: =TEXT(A9,"aaa") -> 土 | C9: 〇 | E9: 残工事対応のため開所
A10: =A9+1 -> 2025-03-02 | B10: =TEXT(A10,"aaa") -> 日 | H10: 凡例
A11: =A10+1 -> 2025-03-03 | B11: 月 | H11: 閉所 | I11: 〇
A12: 2025-03-04 | B12: 火 | H12: 現場休息 | I12: ●
A13: 2025-03-05 | B13: 水 | H13: 振替閉所 | I13: ◎
A14: 2025-03-06 | B14: 木 | H14: 対象外 | I14: －
A15: 2025-03-07 | B15: 金 | C15: 〇 | E15: 残工事対応のため開所 | H15: 雨天等 | I15: 天
A16: 2025-03-08 | B16: 土 | C16: 〇 | D16: 〇
A17: 2025-03-09 | B17: 日 | C17: 〇 | D17: 〇
A18: 2025-03-10 | B18: 月 | C18: 〇 | D18: 〇
A19: 2025-03-11 | B19: 火
A20: 2025-03-12 | B20: 水
A21: 2025-03-13 | B21: 木
A22: 2025-03-14 | B22: 金 | C22: 〇 | D22: 〇
A23: 2025-03-15 | B23: 土 | C23: 〇 | D23: 〇 | E23: 施工完了日
A24: 2025-03-16 | B24: 日 | C24: － | D24: －
A25: 2025-03-17 | B25: 月 | C25: － | D25: －
A26: 2025-03-18 | B26: 火 | C26: － | D26: －
A27: 2025-03-19 | B27: 水 | C27: － | D27: －
A28: 2025-03-20 | B28: 木 | C28: － | D28: － | F28: 祝日
A29: 2025-03-21 | B29: 金 | C29: － | D29: －
A30: 2025-03-22 | B30: 土 | C30: － | D30: －
A31: 2025-03-23 | B31: 日 | C31: － | D31: －
A32: 2025-03-24 | B32: 月 | C32: － | D32: －
A33: 2025-03-25 | B33: 火 | C33: － | D33: －
A34: 2025-03-26 | B34: 水 | C34: － | D34: －
A35: 2025-03-27 | B35: 木 | C35: － | D35: －
A36: 2025-03-28 | B36: 金 | C36: － | D36: －
A37: 2025-03-29 | B37: 土 | C37: － | D37: －
A38: 2025-03-30 | B38: 日 | C38: － | D38: －
A39: 2025-03-31 | B39: 月 | C39: － | D39: －
A40: 現場閉所日数 | C40: =COUNTIF(C9:C39,"〇")+COUNTIF(C9:C39,"◎")+COUNTIF(C9:C39,"天")+COUNTIF(C9:C39,"●") -> 7 | D40: =COUNTIF(D9:D39,"〇")+COUNTIF(D9:D39,"◎")+COUNTIF(D9:D39,"天")+COUNTIF(D9:D39,"●") -> 5
A41: 対象期間 | C41: =DAY(EOMONTH(J6,0))-COUNTIF(C9:C39,"－") -> 15 | D41: =DAY(EOMONTH(J6,0))-COUNTIF(D9:D39,"－") -> 15
A42: 閉所率 | C42: =IF(C41<>0,C40/C41,"対象外") -> 0.4666666667 | D42: =IF(D41<>0,D40/D41,"対象外") -> 0.3333333333 | F42: =IF(D42="対象外","対象外",IF(D42>=28.5%,"閉所率で達成","閉所率未達成")) -> 閉所率で達成
A43: 土日数 | B43: 5 | C43: =IF(D42<>"対象外",IF(L4<0.285,"※対象期間内の土日数を入力してください（手入力)",""),"") -> 
A44: 土日率 | B44: =IF(L4<0.285,L4,"") ->  | C44: =IF(B44<0.285,"※28.5%未満なので土日数で計算となります。","") ->  | F44: =IF(L4<0.285,IF(F42="対象外","",IF(B44<0.285,IF(B43<=D40,"土日数で達成","土日数未達成"),"")),"") -> 
E45: 達成の判定 | F45: =IF(F42="対象外","－",IF(OR(F42="閉所率で達成",F44="土日数で達成"),"◎","×")) -> ◎

Sheet 記載例1
A2: 現場閉所実績書
A3: 工事名： | B3: =別紙１!E6 -> ●●●●●●●●工事
A4: 受注者名： | B4: =別紙１!E7 -> ○○○○〇工業(株)
A5: 工 期： | B5: =別紙１!E8 -> 令和７年４月17日～令和８年３月15日 | H5: 年月入力欄
A6: =TEXT(J6,"gge")&"年"&TEXT(J6,"m")&"月" -> 令5年8月 | H6: 年 | I6: 2023 | J6: =DATE(I6,I7,1) -> 2023-08-01
A7: 月日 | B7: 曜日 | C7: 現場閉所 計画日 | D7: 現場閉所 実施日 | E7: 現場閉所計画と現場閉所実績に 差異がある場合等に記載 | F7: 祝祭日記入 | H7: 月 | I7: 8
A9: =DATE(I6,I7,1) -> 2023-08-01 | B9: =TEXT(A9,"aaa") -> 火 | C9: － | D9: －
A10: =A9+1 -> 2023-08-02 | B10: =TEXT(A10,"aaa") -> 水 | C10: － | D10: － | H10: 凡例
A11: =A10+1 -> 2023-08-03 | B11: 木 | C11: － | D11: － | H11: 閉所 | I11: 〇
A12: 2023-08-04 | B12: 金 | C12: － | D12: － | E12: 契約着工日 | H12: 振替閉所 | I12: ◎
A13: 2023-08-05 | B13: 土 | C13: － | D13: － | E13: 対象期間外（現場施工着手前） | H13: 対象外 | I13: －
A14: 2023-08-06 | B14: 日 | C14: － | D14: － | E14: 〃 | H14: 雨天等 | I14: 天
A15: 2023-08-07 | B15: 月 | C15: － | D15: － | E15: 〃
A16: 2023-08-08 | B16: 火 | C16: － | D16: －
A17: 2023-08-09 | B17: 水 | C17: － | D17: －
A18: 2023-08-10 | B18: 木 | C18: － | D18: － | F18: 山の日
A19: 2023-08-11 | B19: 金 | C19: － | D19: － | E19: 対象期間外（現場施工着手前）
A20: 2023-08-12 | B20: 土 | C20: － | D20: － | E20: 夏季休暇
A21: 2023-08-13 | B21: 日 | C21: － | D21: － | E21: 〃
A22: 2023-08-14 | B22: 月 | C22: － | D22: － | E22: 〃
A23: 2023-08-15 | B23: 火 | C23: － | D23: －
A24: 2023-08-16 | B24: 水 | C24: － | D24: －
A25: 2023-08-17 | B25: 木 | E25: 現場施工着手日
A26: 2023-08-18 | B26: 金
A27: 2023-08-19 | B27: 土 | D27: 天 | E27: 雨天により休工（監督職員に連絡済）
A28: 2023-08-20 | B28: 日
A29: 2023-08-21 | B29: 月
A30: 2023-08-22 | B30: 火 | C30: 〇 | D30: 〇
A31: 2023-08-23 | B31: 水 | C31: 〇 | D31: 〇
A32: 2023-08-24 | B32: 木
A33: 2023-08-25 | B33: 金
A34: 2023-08-26 | B34: 土
A35: 2023-08-27 | B35: 日 | D35: ◎ | E35: 8月29日の振替休日
A36: 2023-08-28 | B36: 月
A37: 2023-08-29 | B37: 火 | C37: 〇 | E37: 地元との協議により作業
A38: 2023-08-30 | B38: 水 | C38: 〇 | D38: 〇
A39: 2023-08-31 | B39: 木
A40: 現場閉所日数 | C40: =COUNTIF(C9:C39,"〇")+COUNTIF(C9:C39,"◎")+COUNTIF(C9:C39,"天")+COUNTIF(C9:C39,"他") -> 4 | D40: =COUNTIF(D9:D39,"〇")+COUNTIF(D9:D39,"◎")+COUNTIF(D9:D39,"天")+COUNTIF(D9:D39,"他") -> 5
A41: 対象期間 | C41: =DAY(EOMONTH(J6,0))-COUNTIF(C9:C39,"－") -> 15 | D41: =DAY(EOMONTH(J6,0))-COUNTIF(D9:D39,"－") -> 15
A42: 閉所率 | C42: =C40/C41 -> 0.2666666667 | D42: =D40/D41 -> 0.3333333333
